fUST/lending_fUST_20240116
["ID","MTS","AMOUNT","RATE_DAILY","PERIOD"]
[311770439,1705384239212,-500.0,0.00024689,2]
[311770441,1705384239221,-200.0,0.00024934,7]
[311770443,1705384239231,-1933.05,0.00024961,2]
[311770445,1705384239240,-500.0,0.00024962,2]
[311770447,1705384239250,-959.71,0.00024962,2]
[311770449,1705384239259,-3084.83,0.00024962,2]
[311770451,1705384239269,-676.85,0.00024962,2]
[311770453,1705384239278,-500.0,0.00024962,2]
[311770455,1705384239288,-500.0,0.00024962,2]
[311770457,1705384239297,-674.48,0.00024962,2]
[311770459,1705384239306,-500.0,0.00024962,2]
[311770461,1705384239315,-500.0,0.00024962,2]
[311770463,1705384239325,-579.41,0.00024962,2]
[311770465,1705384239333,-500.0,0.00024962,2]
[311770467,1705384239343,-1240.43,0.00024962,2]
[311770469,1705384239352,-500.0,0.00024962,2]
[311770471,1705384239361,-500.0,0.00024962,2]
[311770473,1705384239370,-1362.9,0.00024962,2]
[311770475,1705384239380,-986.06,0.00024962,2]
[311770477,1705384239389,-500.0,0.00024962,2]
[311770479,1705384239398,-507.24,0.00024963,2]
[311770481,1705384239407,-188.60791532,0.00024963,2]
[311770483,1705384239416,-687.93916872,0.00025,2]
[311770485,1705384239425,-1045.05948708,0.00025,2]
[311770487,1705384239434,-4716.82638211,0.00025,2]
[311770489,1705384239444,-1933.05,0.00025235,2]
[311770491,1705384239456,-500.0,0.00025236,2]
[311770493,1705384239465,-959.71,0.00025236,2]
[311770495,1705384239474,-3084.83,0.00025236,2]
[311770497,1705384239483,-676.85,0.00025236,2]
[311770499,1705384239492,-500.0,0.00025236,2]
[311770501,1705384239502,-500.0,0.00025236,2]
[311770503,1705384239511,-674.48,0.00025236,2]
[311770505,1705384239520,-500.0,0.00025236,2]
[311770507,1705384239530,-500.0,0.00025236,2]
[311770509,1705384239540,-579.41,0.00025236,2]
[311770511,1705384239549,-500.0,0.00025236,2]
[311770513,1705384239559,-1240.43,0.00025236,2]
[311770515,1705384239569,-606.68477192,0.00025236,2]
[311770517,1705384239578,-500.0,0.00025236,2]
[311770519,1705384239587,-1362.9,0.00025236,2]
[311770521,1705384239597,-986.06,0.00025236,2]
[311770523,1705384239606,-500.0,0.00025236,2]
[311770525,1705384239615,-507.24,0.00025237,2]
[311770527,1705384239624,-1933.05,0.00025509,2]
[311770529,1705384239633,-500.0,0.0002551,2]
[311770531,1705384239643,-959.71,0.0002551,2]
[311770533,1705384239652,-3084.83,0.0002551,2]
[311770535,1705384239662,-676.85,0.0002551,2]
[311770537,1705384239671,-500.0,0.0002551,2]
[311770539,1705384239680,-500.0,0.0002551,2]
[311770541,1705384239690,-674.48,0.0002551,2]
[311770543,1705384239699,-500.0,0.0002551,2]
[311770545,1705384239707,-500.0,0.0002551,2]
[311770547,1705384239717,-579.41,0.0002551,2]
[311770549,1705384239726,-500.0,0.0002551,2]
[311770551,1705384239736,-1240.43,0.0002551,2]
[311770553,1705384239746,-249.13022421,0.0002551,2]
[311770555,1705384239756,-1362.9,0.0002551,2]
[311770557,1705384239765,-986.06,0.0002551,2]
[311770560,1705384239774,-500.0,0.0002551,2]
[311770563,1705384239784,-507.24,0.00025511,2]
[311770566,1705384239793,-1933.05,0.00025783,2]
[311770569,1705384239802,-500.0,0.00025784,2]
[311770572,1705384239811,-959.71,0.00025784,2]
[311770575,1705384239821,-3084.83,0.00025784,2]
[311770578,1705384239830,-676.85,0.00025784,2]
[311770581,1705384239839,-500.0,0.00025784,2]
[311770583,1705384239848,-500.0,0.00025784,2]
[311770585,1705384239857,-674.48,0.00025784,2]
[311770587,1705384239866,-500.0,0.00025784,2]
[311770589,1705384239875,-579.41,0.00025784,2]
[311770591,1705384239884,-500.0,0.00025784,2]
[311770593,1705384239893,-1240.43,0.00025784,2]
[311770595,1705384239902,-1362.9,0.00025784,2]
[311770597,1705384239911,-986.06,0.00025784,2]
[311770599,1705384239920,-500.0,0.00025784,2]
[311770601,1705384239930,-507.24,0.00025785,2]
[311770603,1705384239939,-1933.05,0.00026057,2]
[311770605,1705384239948,-500.0,0.00026058,2]
[311770607,1705384239957,-959.71,0.00026058,2]
[311770609,1705384239966,-3084.83,0.00026058,2]
[311770610,1705384239975,-676.85,0.00026058,2]
[311770612,1705384239984,-500.0,0.00026058,2]
[311770614,1705384239993,-500.0,0.00026058,2]
[311770616,1705384240003,-674.48,0.00026058,2]
[311770618,1705384240012,-500.0,0.00026058,2]
[311770620,1705384240021,-579.41,0.00026058,2]
[311770622,1705384240030,-500.0,0.00026058,2]
[311770624,1705384240040,-1240.43,0.00026058,2]
[311770626,1705384240049,-1362.9,0.00026058,2]
[311770628,1705384240059,-986.06,0.00026058,2]
[311770630,1705384240069,-500.0,0.00026058,2]
[311770632,1705384240078,-507.24,0.00026059,2]
[311770634,1705384240087,-163.48963911,0.00026141,2]
[311770636,1705384240096,-1933.05,0.00026331,2]
[311770638,1705384240105,-500.0,0.00026332,2]
[311770640,1705384240115,-959.71,0.00026332,2]
[311770642,1705384240124,-3084.83,0.00026332,2]
[311770644,1705384240133,-676.85,0.00026332,2]
[311770646,1705384240142,-500.0,0.00026332,2]
[311770648,1705384240151,-674.48,0.00026332,2]
[311770650,1705384240160,-500.0,0.00026332,2]
[311770652,1705384240169,-579.41,0.00026332,2]
[311770654,1705384240178,-500.0,0.00026332,2]
[311770656,1705384240187,-1240.43,0.00026332,2]
[311770658,1705384240196,-1362.9,0.00026332,2]
[311770660,1705384240205,-986.06,0.00026332,2]
[311770662,1705384240214,-500.0,0.00026332,2]
[311770664,1705384240223,-507.24,0.00026333,2]
[311770666,1705384240232,-2000.0,0.000265,2]
[311770668,1705384240241,-2000.0,0.0002651,2]
[311770670,1705384240250,-2000.0,0.0002652,2]
[311770672,1705384240259,-2000.0,0.0002653,2]
[311770674,1705384240268,-3151.335608,0.0002654,2]
[311770676,1705384240277,-500.0,0.00026549,2]
[311770678,1705384240286,-500.0,0.00026549,2]
[311770680,1705384240295,-9110.22573903,0.0002655,4]
[311770682,1705384240304,-1933.05,0.00026605,2]
[311770685,1705384240313,-500.0,0.00026606,2]
[311770687,1705384240325,-959.71,0.00026606,2]
[311770689,1705384240334,-3084.83,0.00026606,2]
[311770691,1705384240343,-676.85,0.00026606,2]
[311770693,1705384240352,-500.0,0.00026606,2]
[311770695,1705384240361,-674.48,0.00026606,2]
[311770697,1705384240370,-500.0,0.00026606,2]
[311770698,1705384240379,-579.41,0.00026606,2]
[311770701,1705384240388,-500.0,0.00026606,2]
[311770703,1705384240397,-1240.43,0.00026606,2]
[311770704,1705384240406,-1362.9,0.00026606,2]
[311770706,1705384240415,-986.06,0.00026606,2]
[311770708,1705384240424,-500.0,0.00026606,2]
[311770711,1705384240434,-507.24,0.00026607,2]
[311770713,1705384240443,-306.2535945,0.00026849,2]
[311770714,1705384240452,-306.0,0.00026849,2]
[311770716,1705384240462,-157.7642133,0.00026849,2]
[311770719,1705384240473,-153.0,0.00026849,2]
[311770720,1705384240481,-306.2703506,0.00026849,2]
[311770722,1705384240491,-153.0,0.00026849,2]
[311770724,1705384240500,-153.0,0.00026849,2]
[311770726,1705384240509,-1933.05,0.00026879,2]
[311770728,1705384240519,-500.0,0.0002688,2]
[311770730,1705384240527,-959.71,0.0002688,2]
[311770732,1705384240538,-3084.83,0.0002688,2]
[311770735,1705384240548,-676.85,0.0002688,2]
[311770737,1705384240558,-500.0,0.0002688,2]
[311770739,1705384240568,-674.48,0.0002688,2]
[311770740,1705384240577,-500.0,0.0002688,2]
[311770742,1705384240586,-579.41,0.0002688,2]
[311770745,1705384240596,-359.32,0.0002688,2]
[311770746,1705384240605,-1240.43,0.0002688,2]
[311770748,1705384240614,-1362.9,0.0002688,2]
[311770750,1705384240622,-986.06,0.0002688,2]
[311770752,1705384240632,-500.0,0.0002688,2]
[311770755,1705384240642,-507.24,0.00026881,2]
[311770756,1705384240651,-500.0,0.00026882,2]
[311770758,1705384240661,-500.0,0.00026882,2]
[311770760,1705384240670,-382.26289229,0.00026882,2]
[311770762,1705384240679,-500.0,0.00026882,2]
[311770764,1705384240688,-500.0,0.00026882,2]
[311770766,1705384240697,-500.0,0.00026882,2]
[311770768,1705384240707,-500.0,0.00026882,2]
[311770770,1705384240717,-500.0,0.00026882,2]
[311770772,1705384240727,-500.0,0.00026882,2]
[311770774,1705384240736,-500.0,0.00026882,2]
[311770776,1705384240745,-500.0,0.00026882,2]
[311770778,1705384240754,-500.0,0.00026882,2]
[311770780,1705384240763,-500.0,0.00026882,2]
[311770782,1705384240771,-500.0,0.00026882,2]
[311770784,1705384240781,-500.0,0.00026882,2]
[311770786,1705384240790,-500.0,0.00026882,2]
[311770788,1705384240800,-471.87569629,0.00026882,2]
[311770791,1705384240810,-500.0,0.00026882,2]
[311770793,1705384240820,-500.0,0.00026882,2]
[311770795,1705384240829,-500.0,0.00026882,2]
[311770796,1705384240839,-500.0,0.00026882,2]
[311770798,1705384240849,-500.0,0.00026882,2]
[311770801,1705384240858,-213.44356377,0.00026882,2]
[311770802,1705384240867,-500.0,0.00026882,2]
[311770804,1705384240876,-500.0,0.00026882,2]
[311770806,1705384240885,-500.0,0.00026882,2]
[311770808,1705384240894,-500.0,0.00026882,2]
[311770810,1705384240903,-500.0,0.00026882,2]
[311770812,1705384240912,-500.0,0.00026882,2]
[311770814,1705384240921,-500.0,0.00026882,2]
[311770816,1705384240930,-500.0,0.00026882,2]
[311770818,1705384240939,-500.0,0.00026882,2]
[311770820,1705384240948,-500.0,0.00026882,2]
[311770822,1705384240957,-500.0,0.00026882,2]
[311770824,1705384240966,-500.0,0.00026882,2]
[311770826,1705384240975,-500.0,0.00026882,2]
[311770828,1705384240984,-500.0,0.00026882,2]
[311770830,1705384240993,-500.0,0.00026882,2]
[311770832,1705384241002,-500.0,0.00026882,2]
[311770834,1705384241012,-500.0,0.00026882,2]
[311770836,1705384241021,-500.0,0.00026882,2]
[311770838,1705384241030,-500.0,0.00026882,2]
[311770840,1705384241040,-500.0,0.00026882,2]
[311770842,1705384241049,-500.0,0.00026882,2]
[311770844,1705384241058,-500.0,0.00026882,2]
[311770846,1705384241067,-500.0,0.00026882,2]
[311770848,1705384241076,-500.0,0.00026882,2]
[311770850,1705384241085,-500.0,0.00026882,2]
[311770852,1705384241094,-500.0,0.00026882,2]
[311770854,1705384241102,-500.0,0.00026882,2]
[311770856,1705384241112,-500.0,0.00026882,2]
[311770858,1705384241121,-500.0,0.00026882,2]
[311770860,1705384241129,-500.0,0.00026882,2]
[311770862,1705384241138,-500.0,0.00026882,2]
[311770863,1705384241147,-500.0,0.00026882,2]
[311770865,1705384241156,-455.24594009,0.00026882,2]
[311770867,1705384241166,-500.0,0.00026882,2]
[311770869,1705384241175,-500.0,0.00026882,2]
[311770871,1705384241184,-500.0,0.00026882,2]
[311770873,1705384241193,-500.0,0.00026882,2]
[311770875,1705384241202,-500.0,0.00026882,2]
[311770877,1705384241211,-500.0,0.00026882,2]
[311770887,1705384241292,-262.91565105,0.00026882,2]
[311770889,1705384241302,-500.0,0.00026882,2]
[311770891,1705384241311,-500.0,0.00026882,2]
[311770893,1705384241321,-576.21365639,0.00026882,2]
[311770895,1705384241330,-500.0,0.00026882,2]
[311770897,1705384241339,-500.0,0.00026882,2]
[311770899,1705384241348,-500.0,0.00026882,2]
[311770901,1705384241357,-317.38252364,0.00026882,2]
[311770903,1705384241366,-500.0,0.00026882,2]
[311770905,1705384241375,-500.0,0.00026882,2]
[311770907,1705384241383,-500.0,0.00026882,2]
[311770909,1705384241392,-500.0,0.00026882,2]
[311770911,1705384241401,-500.0,0.00026882,2]
[311770913,1705384241410,-500.0,0.00026882,2]
[311770915,1705384241419,-500.0,0.00026882,2]
[311770917,1705384241428,-150.0,0.00026883,2]
[311770919,1705384241438,-291.29664454,0.00027,2]
[311770921,1705384241452,-461.1686624,0.00027,2]
[311770923,1705384241461,-274.42712104,0.00027,2]
[311770925,1705384241470,-1500.0,0.00027,2]
[311770927,1705384241479,-1933.05,0.00027153,2]
[311770929,1705384241490,-500.0,0.00027154,2]
[311770931,1705384241499,-959.71,0.00027154,2]
[311770933,1705384241508,-3084.83,0.00027154,2]
[311770935,1705384241519,-676.85,0.00027154,2]
[311770938,1705384241529,-500.0,0.00027154,2]
[311770940,1705384241539,-674.48,0.00027154,2]
[311770942,1705384241548,-409.85201386,0.00027154,2]
[311770944,1705384241557,-579.41,0.00027154,2]
[311770946,1705384241566,-1240.43,0.00027154,2]
[311770948,1705384241575,-1362.9,0.00027154,2]
[311770950,1705384241583,-986.06,0.00027154,2]
[311770952,1705384241593,-500.0,0.00027154,2]
[311770954,1705384241602,-507.24,0.00027155,2]
[311770956,1705384241611,-651.48,0.00027397,2]
[311770957,1705384241621,-651.48,0.00027397,2]
[311770959,1705384241630,-651.48,0.00027397,2]
[311770961,1705384241639,-651.48,0.00027397,2]
[311770963,1705384241649,-651.48,0.00027397,2]
[311770965,1705384241659,-651.48,0.00027397,2]
[311770967,1705384241668,-651.48,0.00027397,2]
[311770969,1705384241677,-651.48,0.00027397,2]
[311770971,1705384241686,-651.48,0.00027397,2]
[311770973,1705384241695,-651.48,0.00027397,2]
[311770975,1705384241704,-651.48,0.00027397,2]
[311770977,1705384241714,-651.48,0.00027397,2]
[311770979,1705384241723,-651.48,0.00027397,2]
[311770981,1705384241732,-651.48,0.00027397,2]
[311770983,1705384241741,-651.48,0.00027397,2]
[311770985,1705384241750,-651.48,0.00027397,2]
[311770987,1705384241758,-651.48,0.00027397,2]
[311770989,1705384241767,-1000.0,0.00027397,2]
[311770991,1705384241777,-508.84364102,0.00027397,2]
[311770993,1705384241786,-10026.40145597,0.00027397,10]
[311770995,1705384241795,-500.0,0.00027397,2]
[311770997,1705384241804,-155.0,0.00027397,2]
[311770999,1705384241813,-1933.05,0.00027427,2]
[311771001,1705384241822,-280.0,0.00027427,15]
[311771003,1705384241830,-500.0,0.00027428,2]
[311771005,1705384241839,-959.71,0.00027428,2]
[311771006,1705384241848,-3084.83,0.00027428,2]
[311771007,1705384241857,-676.85,0.00027428,2]
[311771008,1705384241866,-500.0,0.00027428,2]
[311771009,1705384241874,-674.48,0.00027428,2]
[311771010,1705384241883,-579.41,0.00027428,2]
[311771011,1705384241892,-1240.43,0.00027428,2]
[311771012,1705384241902,-1362.9,0.00027428,2]
[311771013,1705384241912,-986.06,0.00027428,2]
[311771014,1705384241922,-500.0,0.00027428,2]
[311771015,1705384241931,-507.24,0.00027429,2]
[311771016,1705384241940,-651.48,0.00027429,2]
[311771017,1705384241949,-500.0,0.00027534,2]
[311771018,1705384241958,-500.0,0.00027671,2]
[311771019,1705384241967,-1933.05,0.00027701,2]
[311771020,1705384241976,-500.0,0.00027702,2]
[311771021,1705384241984,-959.71,0.00027702,2]
[311771022,1705384241993,-3084.83,0.00027702,2]
[311771023,1705384242002,-676.85,0.00027702,2]
[311771024,1705384242011,-500.0,0.00027702,2]
[311771025,1705384242020,-674.48,0.00027702,2]
[311771026,1705384242030,-579.41,0.00027702,2]
[311771027,1705384242039,-1240.43,0.00027702,2]
[311771028,1705384242047,-1362.9,0.00027702,2]
[311771029,1705384242056,-986.06,0.00027702,2]
[311771030,1705384242065,-500.0,0.00027702,2]
[311771031,1705384242074,-507.24,0.00027703,2]
[311771033,1705384242083,-651.48,0.00027703,2]
[311771035,1705384242092,-500.0,0.00027808,2]
[311771037,1705384242101,-5000.0,0.00027869,5]
[311771039,1705384242110,-50000.0,0.00027869,3]
[311771041,1705384242119,-64005.32698195,0.00027869,3]
[311771043,1705384242128,-5000.0,0.00027869,5]
[311771045,1705384242137,-17372.04185865,0.00027869,4]
[311771047,1705384242147,-5000.0,0.00027869,5]
[311771049,1705384242156,-2521.96853922,0.00027869,4]
[311771051,1705384242165,-4117.68224199,0.00027869,5]
[311771069,1705384242289,-882.31775801,0.00027869,5]
[311771071,1705384242299,-500.0,0.00027945,2]
[311771073,1705384242308,-163.48963911,0.00027967,2]
[311771075,1705384242317,-1933.05,0.00027975,2]
[311771077,1705384242325,-101.87148035,0.00027976,2]
[311771079,1705384242337,-291.94869457,0.00027976,2]
[311771082,1705384242349,-113.41982508,0.00027976,2]
[311771084,1705384242358,-651.48,0.00027976,2]
[311771086,1705384242367,-500.0,0.00027976,2]
[311771088,1705384242377,-959.71,0.00027976,2]
[311771090,1705384242386,-1709.62497248,0.00027976,2]
[311771118,1705384242639,-160.77503701,0.00023317,2]
[311771120,1705384242649,-466.94620861,0.0002359,2]
[311771132,1705384242761,-3702.62625234,0.0002359,2]
[311771134,1705384242771,-562.81123977,0.00024413,2]
[311771136,1705384242780,-155.05689651,0.00024413,2]
[311771138,1705384242789,-1735.44,0.00026872,3]
[311771140,1705384242799,-500.0,0.00026882,2]
[311771142,1705384242808,-500.0,0.00026882,2]
[311771144,1705384242818,-642.22493173,0.00026882,2]
[311771146,1705384242827,-1375.20502752,0.00027976,2]
[311771148,1705384242836,-676.85,0.00027976,2]
[311771150,1705384242846,-500.0,0.00027976,2]
[311771152,1705384242855,-674.48,0.00027976,2]
[311771154,1705384242863,-579.41,0.00027976,2]
[311771156,1705384242873,-1240.43,0.00027976,2]
[311771158,1705384242882,-1362.9,0.00027976,2]
[311771160,1705384242892,-986.06,0.00027976,2]
[311771162,1705384242901,-500.0,0.00027976,2]
[311771164,1705384242910,-1500.0,0.00028,2]
[311771166,1705384242920,-500.0,0.00028082,2]
[311771168,1705384242929,-201.31,0.000281,4]
[311771170,1705384242938,-500.0,0.00028219,2]
[311771172,1705384242948,-1933.05,0.00028249,2]
[311771174,1705384242958,-507.24,0.0002825,2]
[311771176,1705384242967,-651.48,0.0002825,2]
[311771178,1705384242976,-500.0,0.0002825,2]
[311771180,1705384242985,-959.71,0.0002825,2]
[311771182,1705384242994,-3084.83,0.0002825,2]
[311771184,1705384243004,-676.85,0.0002825,2]
[311771186,1705384243013,-500.0,0.0002825,2]
[311771188,1705384243022,-674.48,0.0002825,2]
[311771190,1705384243032,-579.41,0.0002825,2]
[311771192,1705384243042,-1240.43,0.0002825,2]
[311771194,1705384243051,-1362.9,0.0002825,2]
[311771196,1705384243064,-986.06,0.0002825,2]
[311771198,1705384243074,-500.0,0.0002825,2]
[311771199,1705384243083,-500.0,0.00028356,2]
[311771202,1705384243092,-500.0,0.00028493,2]
[311771203,1705384243101,-1933.05,0.00028523,2]
[311771205,1705384243110,-487.21595598,0.00028523,4]
[311771208,1705384243122,-39.15830428,0.00028523,4]
[311771210,1705384243132,-242.9416794,0.00028523,4]
[311774057,1705384372818,-155.0,0.00021231,4]
[311774062,1705384423334,1997.07022902,0.0002024,2]
[311774063,1705384441807,-155.0,0.00021231,4]
[311774075,1705384743648,-500.0,0.00042838,120]
[311774076,1705384743672,-553.02693507,0.00042838,120]
[311774077,1705384743709,-481.4595847,0.00042838,120]
[311774078,1705384743735,-533.31727648,0.00042838,120]
[311774079,1705384743763,-419.91094838,0.00042838,120]
[311774080,1705384743788,-601.26193747,0.00042838,120]
[311774081,1705384743812,-480.7269058,0.00042838,120]
[311774082,1705384743836,-313.74199883,0.00042838,120]
[311774083,1705384743862,-150.91638242,0.00042838,30]
[311774084,1705384743885,-549.51453856,0.00042838,30]
[311774085,1705384743911,-1754.74118613,0.00042838,120]
[311774086,1705384743935,-1212.24,0.00042838,60]
[311774087,1705384743959,-254.63,0.00042838,120]
[311774088,1705384743983,-300166.369181,0.00042838,120]
[311774089,1705384744008,-1385.99348401,0.00042838,30]
[311774090,1705384744036,-2424.2909103,0.00042838,65]
[311774091,1705384744058,-1739.55285321,0.00042838,120]
[311774092,1705384744083,-24460.95541374,0.00042838,30]
[311774093,1705384744107,-161.89586009,0.00042838,30]
[311774094,1705384744130,-155.72894891,0.00042838,30]
[311774095,1705384744153,-161699.7256549,0.00042838,31]
[311774096,1705384747902,-500000.0,0.00042838,31]
[311774097,1705384751228,-500000.0,0.00042838,31]
[311774098,1705384759902,-500000.0,0.00042838,31]
[311774100,1705384781408,-500000.0,0.00042838,31]
[311774101,1705384787137,-500000.0,0.00042838,31]
[311774102,1705384791234,-500000.0,0.00042838,31]
[311774103,1705384795216,-500000.0,0.00042838,31]
[311774104,1705384798457,-500000.0,0.00042838,31]
[311774108,1705384804801,-2697.3139255,0.00030957,120]
[311774110,1705384804837,-163.20323671,0.00035,45]
[311774111,1705384804862,-603.940415,0.00035616,120]
[311774112,1705384804889,-1490.70646957,0.00038,120]
[311774113,1705384804914,-23511.3713606,0.0004,120]
[311774114,1705384804940,-1488.02692767,0.0004,60]
[311774115,1705384804971,-603.940415,0.00041553,120]
[311774116,1705384804996,-1000.0,0.00042,42]
[311774117,1705384805021,-509.0,0.00042,120]
[311774118,1705384805053,-40049.79,0.000429,45]
[311774119,1705384805079,-750.0,0.00042999,120]
[311774120,1705384805104,-493.80846291,0.00043,120]
[311774121,1705384805128,-1000.0,0.00043,43]
[311774122,1705384805152,-237.0,0.00043133,90]
[311774123,1705384805177,-20000.0,0.000432,120]
[311774124,1705384805202,-237.0,0.00043496,90]
[311774125,1705384805228,-314.48499211,0.000449,120]
[311774126,1705384805252,-180.0,0.00045,120]
[311774127,1705384805276,-200.0,0.00045,120]
[311774128,1705384805301,-360.0,0.00045,120]
[311774129,1705384805423,-635.87503476,0.00045,120]
[311774130,1705384805447,-1597.36702157,0.00045,120]
[311774131,1705384805471,-203.09275402,0.00045,120]
[311774132,1705384805496,-625.90239135,0.00045,120]
[311774133,1705384805521,-592.97075388,0.00045,120]
[311774134,1705384805546,-500.0,0.00045,120]
[311774135,1705384805572,-500.0,0.00045,120]
[311774136,1705384805597,-161.43204846,0.00045,120]
[311774137,1705384805623,-500.0,0.00045,120]
[311774138,1705384805648,-500.0,0.00045,120]
[311774139,1705384805672,-220.78135444,0.00045,120]
[311774140,1705384805699,-243.28689101,0.00045,120]
[311774141,1705384805725,-584.79152841,0.00045,120]
[311774142,1705384805751,-500.0,0.00045,120]
[311774143,1705384805776,-584.79152841,0.00045,120]
[311774144,1705384805801,-291.2915651,0.00045,120]
[311774145,1705384805826,-500.0,0.00045,120]
[311774146,1705384805850,-500.0,0.00045,120]
[311774147,1705384805875,-584.79152841,0.00045,120]
[311774148,1705384805899,-584.79152841,0.00045,120]
[311774149,1705384805924,-584.79152841,0.00045,120]
[311774150,1705384805949,-584.79152841,0.00045,120]
[311774151,1705384805975,-500.0,0.00045,120]
[311774152,1705384806000,-310.29839106,0.00045,120]
[311774153,1705384806025,-500.0,0.00045,120]
[311774154,1705384806051,-500.0,0.00045,120]
[311774155,1705384806074,-789.46856335,0.00045,120]
[311774156,1705384806101,-789.46856335,0.00045,120]
[311774157,1705384806126,-237.0,0.00045671,90]
[311774158,1705384806153,-603.940415,0.00047489,120]
[311774159,1705384806177,-50000.0,0.00048,90]
[311774160,1705384806203,-221.0,0.0004881,60]
[311774161,1705384806230,-200.0,0.00049,120]
[311774162,1705384806256,-180.0,0.000495,120]
[311774163,1705384806281,-817.083,0.0004976,120]
[311774164,1705384806307,-817.083,0.0004976,120]
[311774165,1705384806331,-223.841,0.0004976,120]
[311774166,1705384806356,-817.083,0.0004976,120]
[311774167,1705384806381,-223.841,0.0004976,120]
[311774168,1705384806406,-817.082,0.0004976,120]
[311774169,1705384806432,-223.841,0.0004976,120]
[311774170,1705384806459,-817.082,0.0004976,120]
[311774171,1705384806492,-223.841,0.0004976,120]
[311774172,1705384806524,-223.842,0.0004976,120]
[311774173,1705384806552,-41818.87156734,0.0005,120]
[311774174,1705384806584,-286.54780876,0.0005,120]
[311774175,1705384806614,-50000.0,0.0005,90]
[311774176,1705384806645,-299.0,0.0005,120]
[311774177,1705384806676,-240089.45050102,0.0005,120]
[311774190,1705384859836,155.0,0.00020984,4]
[311774192,1705384888410,-500000.0,0.00042868,31]
[311774193,1705384893769,-500000.0,0.00042868,31]
[311774198,1705384939717,308.87329957,0.00020984,2]
[311774202,1705384977383,-500000.0,0.00042868,31]
[311774203,1705384983087,-7666.76383798,0.000295,30]
[311774204,1705384983114,-6096.52663763,0.0003,30]
[311774205,1705384983143,-3361.0,0.0003066,30]
[311774206,1705384983166,-3361.0,0.0003067,30]
[311774207,1705384983189,-3361.0,0.0003068,30]
[311774208,1705384983214,-241.97,0.0003069,30]
[311774209,1705384983238,-3361.0,0.0003177,30]
[311774210,1705384983261,-3361.0,0.0003178,30]
[311774211,1705384983285,-3361.0,0.0003179,30]
[311774212,1705384983319,-151.0,0.00033517,30]
[311774213,1705384983344,-3361.0,0.0003441,30]
[311774214,1705384983367,-3361.0,0.0003442,30]
[311774215,1705384983391,-163.20323671,0.00035,45]
[311774216,1705384983415,-160.0,0.0003557,30]
[311774217,1705384983439,-1497.83574806,0.00038,120]
[311774218,1705384983464,-1702.33,0.000393,60]
[311774219,1705384983488,-5000.0,0.0004,30]
[311774220,1705384983510,-1815.70792445,0.0004,30]
[311774221,1705384983534,-200.0,0.00040338,30]
[311774222,1705384983558,-200.0,0.00040338,30]
[311774223,1705384983580,-200.0,0.00040338,30]
[311774224,1705384983603,-200.0,0.00040338,30]
[311774225,1705384983627,-275.0,0.00040338,30]
[311774226,1705384983650,-3308.35122827,0.000408,30]
[311774227,1705384983673,-52790.02150789,0.00041,30]
[311774228,1705384983697,-2500.0,0.00041,30]
[311774229,1705384983721,-3128.91674015,0.00041,90]
[311774230,1705384983746,-223.564661,0.00041235,30]